fUSD/lending_fUSD_20241104
["ID","MTS","AMOUNT","RATE_DAILY","PERIOD"]
[341231757,1730706655324,-855.96,0.00036438,2]
[341231758,1730706655333,-500.0,0.00036438,2]
[341231759,1730706655343,-1376.22,0.00036438,2]
[341231760,1730706655352,-500.0,0.00036438,2]
[341231761,1730706655361,-1148.2,0.00036438,2]
[341231762,1730706655370,-500.0,0.00036438,2]
[341231763,1730706655379,-500.0,0.00036438,2]
[341231764,1730706655388,-500.0,0.00036438,2]
[341231765,1730706655397,-500.0,0.00036438,2]
[341231766,1730706655406,-500.0,0.00036438,2]
[341231767,1730706655415,-500.0,0.00036438,2]
[341231768,1730706655425,-500.0,0.00036438,2]
[341231769,1730706655434,-500.0,0.00036438,2]
[341231770,1730706655444,-500.0,0.00036438,2]
[341231771,1730706655454,-198.48172836,0.00036438,2]
[341231772,1730706655464,-502.79,0.00036438,2]
[341231773,1730706655474,-500.0,0.00036438,2]
[341231774,1730706655483,-550.01,0.00036438,2]
[341231775,1730706655493,-500.0,0.00036438,2]
[341231776,1730706655504,-500.0,0.00036438,2]
[341231777,1730706655514,-500.0,0.00036438,2]
[341231778,1730706655523,-500.0,0.00036438,2]
[341231779,1730706655532,-500.0,0.00036438,2]
[341231780,1730706655541,-500.0,0.00036438,2]
[341231781,1730706655551,-500.0,0.00036438,2]
[341231782,1730706655560,-624.98854958,0.00036438,2]
[341231783,1730706655569,-500.0,0.00036438,2]
[341231784,1730706655579,-500.0,0.00036438,2]
[341231785,1730706655588,-1083.55,0.00036438,2]
[341231786,1730706655597,-500.0,0.00036438,2]
[341231787,1730706655606,-500.0,0.00036438,2]
[341231788,1730706655615,-464.96585513,0.00036438,2]
[341231789,1730706655624,-500.0,0.00036438,2]
[341231790,1730706655634,-500.0,0.00036438,2]
[341231791,1730706655643,-500.0,0.00036438,2]
[341231792,1730706655652,-500.0,0.00036438,2]
[341231793,1730706655661,-500.0,0.00036438,2]
[341231794,1730706655671,-500.0,0.00036438,2]
[341231795,1730706655681,-500.0,0.00036438,2]
[341231796,1730706655690,-500.0,0.00036438,2]
[341231797,1730706655700,-620.66,0.00036438,2]
[341231798,1730706655709,-500.0,0.00036438,2]
[341231799,1730706655718,-658.4,0.00036438,2]
[341231800,1730706655727,-500.0,0.00036438,2]
[341231801,1730706655736,-625.32,0.00036438,2]
[341231802,1730706655745,-151.0,0.00036438,7]
[341231803,1730706655754,-500.0,0.00036438,2]
[341231804,1730706655763,-500.0,0.00036438,2]
[341231805,1730706655772,-500.0,0.00036438,2]
[341231806,1730706655781,-500.0,0.00036438,2]
[341231807,1730706655791,-500.0,0.00036438,2]
[341231808,1730706655800,-557.48,0.00036438,2]
[341231809,1730706655809,-5483.23,0.00036438,2]
[341231810,1730706655818,-500.0,0.00036438,2]
[341231811,1730706655827,-637.29,0.00036438,2]
[341231812,1730706655836,-500.0,0.00036438,2]
[341231813,1730706655846,-1515.88,0.00036597,2]
[341231814,1730706655855,-515.46779771,0.00036677,2]
[341231815,1730706655864,-500.0,0.00036677,2]
[341231816,1730706655873,-1052.44219995,0.00036678,2]
[341231817,1730706655883,-500.0,0.00036712,2]
[341231818,1730706655892,-500.0,0.00036712,2]
[341231819,1730706655901,-500.0,0.00036712,2]
[341231820,1730706655910,-500.0,0.00036712,2]
[341231821,1730706655919,-500.0,0.00036712,2]
[341231822,1730706655928,-504.98927992,0.00036712,2]
[341231823,1730706655937,-500.0,0.00036712,2]
[341231824,1730706655946,-500.0,0.00036712,2]
[341231825,1730706656034,-500.0,0.00036712,2]
[341231826,1730706656044,-500.0,0.00036712,2]
[341231827,1730706656054,-500.0,0.00036712,2]
[341231828,1730706656063,-321.73069231,0.00036712,2]
[341231829,1730706656073,-500.0,0.00036712,2]
[341231830,1730706656082,-472.59471961,0.00036712,2]
[341231831,1730706656091,-476.0,0.00036712,2]
[341231832,1730706656100,-216.02,0.00036712,2]
[341231833,1730706656110,-500.0,0.00036712,2]
[341231834,1730706656119,-500.0,0.00036712,2]
[341231835,1730706656128,-500.0,0.00036712,2]
[341231836,1730706656138,-375.11767489,0.00036712,2]
[341231837,1730706656147,-159.25,0.00036712,2]
[341231838,1730706656156,-368.75,0.00036712,2]
[341231839,1730706656167,-347.78389133,0.00036712,2]
[341231840,1730706656176,-500.0,0.00036712,2]
[341231841,1730706656185,-500.0,0.00036712,2]
[341231842,1730706656194,-500.0,0.00036712,2]
[341231843,1730706656203,-500.0,0.00036712,2]
[341231844,1730706656213,-500.0,0.00036712,2]
[341231845,1730706656222,-500.0,0.00036712,2]
[341231846,1730706656233,-500.0,0.00036712,2]
[341231847,1730706656242,-500.0,0.00036712,2]
[341231848,1730706656251,-500.0,0.00036712,2]
[341231849,1730706656260,-500.0,0.00036712,2]
[341231850,1730706656270,-500.0,0.00036712,2]
[341231851,1730706656279,-150.0,0.00036712,2]
[341231852,1730706656288,-2043.99372451,0.00036712,2]
[341231853,1730706656298,-500.0,0.00036712,2]
[341231854,1730706656307,-583.7013646,0.00036712,2]
[341231855,1730706656316,-504.39645139,0.00036712,2]
[341231856,1730706656328,-500.0,0.00036712,2]
[341231857,1730706656338,-512.26427718,0.00036712,2]
[341231858,1730706656351,-500.0,0.00036712,2]
[341231859,1730706656361,-500.0,0.00036712,2]
[341231860,1730706656372,-500.0,0.00036712,2]
[341231861,1730706656386,-500.0,0.00036712,2]
[341231862,1730706656398,-922.57,0.00036712,2]
[341231863,1730706656408,-500.0,0.00036712,2]
[341231864,1730706656418,-500.0,0.00036712,2]
[341231865,1730706656428,-500.0,0.00036712,2]
[341231866,1730706656437,-500.0,0.00036712,2]
[341231867,1730706656449,-500.0,0.00036712,2]
[341231868,1730706656460,-400.44724798,0.00036712,2]
[341231869,1730706656470,-500.0,0.00036712,2]
[341231870,1730706656479,-500.0,0.00036712,2]
[341231871,1730706656488,-342.64446492,0.00036712,2]
[341231872,1730706656499,-500.0,0.00036712,2]
[341231873,1730706656508,-500.0,0.00036712,2]
[341231874,1730706656518,-500.0,0.00036712,2]
[341231875,1730706656528,-233.42404597,0.00036712,2]
[341231876,1730706656537,-500.0,0.00036712,2]
[341231877,1730706656547,-206.37124513,0.00036712,2]
[341231878,1730706656556,-170.7063906,0.00036712,2]
[341231879,1730706656566,-500.0,0.00036712,2]
[341231880,1730706656575,-177.76652301,0.00036712,2]
[341231881,1730706656584,-500.0,0.00036712,2]
[341231882,1730706656594,-500.0,0.00036712,2]
[341231883,1730706656603,-362.2,0.00036712,2]
[341231884,1730706656612,-500.0,0.00036712,2]
[341231885,1730706656622,-500.0,0.00036712,2]
[341231886,1730706656631,-300.0,0.00036712,2]
[341231887,1730706656641,-161.81,0.00036712,2]
[341231888,1730706656651,-255.59459648,0.00036712,2]
[341231889,1730706656661,-500.0,0.00036712,2]
[341231890,1730706656671,-290.87989694,0.00036712,2]
[341231891,1730706656680,-500.0,0.00036712,2]
[341231892,1730706656690,-168.23679155,0.00036712,2]
[341231893,1730706656699,-503.57,0.00036712,2]
[341231894,1730706656708,-500.0,0.00036712,2]
[341231895,1730706656718,-500.0,0.00036712,2]
[341231896,1730706656727,-500.0,0.00036712,2]
[341231897,1730706656736,-500.0,0.00036712,2]
[341231898,1730706656746,-500.0,0.00036712,2]
[341231899,1730706656755,-590.79104753,0.00036712,2]
[341231900,1730706656765,-500.0,0.00036712,2]
[341231901,1730706656774,-500.0,0.00036712,2]
[341231902,1730706656783,-500.0,0.00036712,2]
[341231903,1730706656793,-500.0,0.00036712,2]
[341231904,1730706656803,-642.67762385,0.00036712,2]
[341231905,1730706656812,-500.0,0.00036712,2]
[341231906,1730706656822,-1260.4,0.00036712,2]
[341231907,1730706656832,-500.0,0.00036712,2]
[341231908,1730706656841,-250.0,0.00036712,2]
[341231909,1730706656851,-500.0,0.00036712,2]
[341231910,1730706656860,-500.0,0.00036712,2]
[341231911,1730706656870,-500.0,0.00036712,2]
[341231912,1730706656879,-1008.77,0.00036712,2]
[341231913,1730706656889,-462.1249454,0.00036712,2]
[341231914,1730706656898,-500.0,0.00036712,2]
[341231915,1730706656908,-552.59,0.00036712,2]
[341231916,1730706656918,-500.0,0.00036712,2]
[341231917,1730706656927,-500.0,0.00036712,2]
[341231918,1730706656937,-500.0,0.00036712,2]
[341231919,1730706656948,-200.0,0.00036712,2]
[341231920,1730706656958,-764.99,0.00036712,2]
[341231921,1730706656968,-680.74,0.00036712,2]
[341231922,1730706656978,-500.0,0.00036712,2]
[341231923,1730706656988,-500.0,0.00036712,2]
[341231924,1730706656999,-500.0,0.00036712,2]
[341231925,1730706657009,-500.0,0.00036712,2]
[341231926,1730706657019,-500.0,0.00036712,2]
[341231927,1730706657028,-500.0,0.00036712,2]
[341231928,1730706657038,-500.0,0.00036712,2]
[341231929,1730706657047,-500.0,0.00036712,2]
[341231930,1730706657056,-276.39757487,0.00036712,2]
[341231931,1730706657066,-500.0,0.00036712,2]
[341231932,1730706657076,-500.0,0.00036712,2]
[341231933,1730706657086,-500.0,0.00036712,2]
[341231934,1730706657096,-520.85132467,0.00036712,2]
[341231935,1730706657106,-433.14143996,0.00036712,2]
[341231936,1730706657116,-500.0,0.00036712,2]
[341231937,1730706657126,-500.0,0.00036712,2]
[341231938,1730706657135,-500.0,0.00036712,2]
[341231939,1730706657145,-500.0,0.00036712,2]
[341231940,1730706657155,-500.0,0.00036712,2]
[341231941,1730706657165,-500.0,0.00036712,2]
[341231942,1730706657174,-500.0,0.00036712,2]
[341231943,1730706657184,-882.73,0.00036712,2]
[341231944,1730706657194,-500.0,0.00036712,2]
[341231945,1730706657204,-500.0,0.00036712,2]
[341231946,1730706657215,-1038.01,0.00036712,2]
[341231947,1730706657224,-2119.8,0.00036712,2]
[341231948,1730706657234,-636.33,0.00036712,2]
[341231949,1730706657244,-500.0,0.00036712,2]
[341231950,1730706657254,-500.0,0.00036712,2]
[341231951,1730706657264,-500.0,0.00036712,2]
[341231952,1730706657274,-855.96,0.00036712,2]
[341231953,1730706657284,-500.0,0.00036712,2]
[341231954,1730706657294,-1376.22,0.00036712,2]
[341231955,1730706657304,-500.0,0.00036712,2]
[341231956,1730706657313,-1148.2,0.00036712,2]
[341231957,1730706657322,-500.0,0.00036712,2]
[341231958,1730706657332,-500.0,0.00036712,2]
[341231959,1730706657342,-500.0,0.00036712,2]
[341231960,1730706657351,-500.0,0.00036712,2]
[341231961,1730706657361,-500.0,0.00036712,2]
[341231962,1730706657370,-500.0,0.00036712,2]
[341231963,1730706657380,-500.0,0.00036712,2]
[341231964,1730706657390,-500.0,0.00036712,2]
[341231965,1730706657399,-500.0,0.00036712,2]
[341231966,1730706657409,-502.79,0.00036712,2]
[341231967,1730706657419,-500.0,0.00036712,2]
[341231968,1730706657429,-550.01,0.00036712,2]
[341231969,1730706657438,-500.0,0.00036712,2]
[341231970,1730706657448,-500.0,0.00036712,2]
[341231971,1730706657457,-260.72597241,0.00036712,2]
[341231972,1730706657467,-500.0,0.00036712,2]
[341231973,1730706657476,-500.0,0.00036712,2]
[341231974,1730706657485,-520.48798044,0.00036712,2]
[341231975,1730706657569,-500.0,0.00036712,2]
[341231976,1730706657579,-500.0,0.00036712,2]
[341231977,1730706657589,-500.0,0.00036712,2]
[341231978,1730706657598,-1083.55,0.00036712,2]
[341231979,1730706657609,-500.0,0.00036712,2]
[341231980,1730706657618,-500.0,0.00036712,2]
[341231981,1730706657628,-500.0,0.00036712,2]
[341231982,1730706657638,-500.0,0.00036712,2]
[341231983,1730706657648,-500.0,0.00036712,2]
[341231984,1730706657657,-500.0,0.00036712,2]
[341231985,1730706657666,-500.0,0.00036712,2]
[341231986,1730706657676,-500.0,0.00036712,2]
[341231987,1730706657686,-500.0,0.00036712,2]
[341231988,1730706657696,-500.0,0.00036712,2]
[341231989,1730706657706,-620.66,0.00036712,2]
[341231990,1730706657715,-500.0,0.00036712,2]
[341231991,1730706657724,-658.4,0.00036712,2]
[341231992,1730706657733,-500.0,0.00036712,2]
[341231993,1730706657744,-625.32,0.00036712,2]
[341231994,1730706657754,-500.0,0.00036712,2]
[341231995,1730706657764,-468.29006404,0.00036712,2]
[341231996,1730706657774,-500.0,0.00036712,2]
[341231997,1730706657783,-500.0,0.00036712,2]
[341231998,1730706657794,-500.0,0.00036712,2]
[341231999,1730706657803,-557.48,0.00036712,2]
[341232000,1730706657813,-5483.23,0.00036712,2]
[341232001,1730706657823,-637.29,0.00036712,2]
[341232002,1730706657832,-500.0,0.00036712,2]
[341232003,1730706657842,-207.76652907,0.00036859,2]
[341232004,1730706657851,-500.0,0.0003687,2]
[341232005,1730706657861,-150.0,0.0003692,2]
[341232006,1730706657870,-150.0,0.00036934,2]
[341232007,1730706657881,-150.0,0.00036938,2]
[341232008,1730706657892,-500.0,0.00036951,2]
[341232009,1730706657903,-150.0,0.00036971,2]
[341232010,1730706657914,-150.0,0.00036972,2]
[341232011,1730706657924,-506.51435622,0.00036986,2]
[341232012,1730706657933,-500.0,0.00036986,2]
[341232013,1730706657943,-500.0,0.00036986,2]
[341232014,1730706657952,-500.0,0.00036986,2]
[341232015,1730706657962,-500.0,0.00036986,2]
[341232016,1730706657973,-206.23877766,0.00036986,2]
[341232017,1730706657983,-500.0,0.00036986,2]
[341232018,1730706657992,-500.0,0.00036986,2]
[341232019,1730706658002,-516.19841254,0.00036986,2]
[341232020,1730706658012,-500.0,0.00036986,2]
[341232021,1730706658021,-500.0,0.00036986,2]
[341232022,1730706658032,-500.0,0.00036986,2]
[341232023,1730706658042,-500.0,0.00036986,2]
[341232024,1730706658051,-500.0,0.00036986,2]
[341232025,1730706658060,-500.0,0.00036986,2]
[341232026,1730706658070,-500.0,0.00036986,2]
[341232027,1730706658079,-500.0,0.00036986,2]
[341232028,1730706658089,-500.0,0.00036986,2]
[341232029,1730706658098,-500.0,0.00036986,2]
[341232030,1730706658107,-500.0,0.00036986,2]
[341232031,1730706658117,-500.0,0.00036986,2]
[341232032,1730706658127,-500.0,0.00036986,2]
[341232033,1730706658136,-500.0,0.00036986,2]
[341232034,1730706658146,-500.0,0.00036986,2]
[341232035,1730706658155,-164.62312615,0.00036986,2]
[341232036,1730706658165,-150.0,0.00036986,2]
[341232037,1730706658174,-500.0,0.00036986,2]
[341232038,1730706658184,-500.0,0.00036986,2]
[341232039,1730706658193,-200.13771863,0.00036986,2]
[341232040,1730706658203,-500.0,0.00036986,2]
[341232041,1730706658213,-500.0,0.00036986,2]
[341232042,1730706658223,-247.52698638,0.00036986,2]
[341232043,1730706658233,-922.57,0.00036986,2]
[341232044,1730706658244,-500.0,0.00036986,2]
[341232045,1730706658253,-500.0,0.00036986,2]
[341232046,1730706658262,-500.0,0.00036986,2]
[341232047,1730706658273,-500.0,0.00036986,2]
[341232048,1730706658283,-500.0,0.00036986,2]
[341232049,1730706658292,-500.0,0.00036986,2]
[341232050,1730706658302,-594.26374187,0.00036986,2]
[341232051,1730706658311,-500.0,0.00036986,2]
[341232052,1730706658321,-500.0,0.00036986,2]
[341232053,1730706658330,-500.0,0.00036986,2]
[341232054,1730706658339,-500.0,0.00036986,2]
[341232055,1730706658348,-500.0,0.00036986,2]
[341232056,1730706658357,-500.0,0.00036986,2]
[341232057,1730706658366,-487.13600823,0.00036986,2]
[341232058,1730706658378,-500.0,0.00036986,2]
[341232059,1730706658388,-500.0,0.00036986,2]
[341232060,1730706658397,-300.0,0.00036986,2]
[341232061,1730706658408,-500.0,0.00036986,2]
[341232062,1730706658418,-500.0,0.00036986,2]
[341232063,1730706658428,-503.57,0.00036986,2]
[341232064,1730706658436,-500.0,0.00036986,2]
[341232065,1730706658446,-500.0,0.00036986,2]
[341232066,1730706658457,-500.0,0.00036986,2]
[341232067,1730706658466,-513.68399032,0.00036986,2]
[341232068,1730706658476,-500.0,0.00036986,2]
[341232069,1730706658485,-500.0,0.00036986,2]
[341232070,1730706658496,-500.0,0.00036986,2]
[341232071,1730706658505,-545.7747015,0.00036986,2]
[341232072,1730706658514,-500.0,0.00036986,2]
[341232073,1730706658524,-500.0,0.00036986,2]
[341232074,1730706658535,-1260.4,0.00036986,2]
[341232075,1730706658545,-485.90145775,0.00036986,2]
[341232076,1730706658555,-250.0,0.00036986,2]
[341232077,1730706658564,-500.0,0.00036986,2]
[341232078,1730706658575,-501.34841063,0.00036986,2]
[341232079,1730706658585,-640.34,0.00036986,2]
[341232080,1730706658595,-1008.77,0.00036986,2]
[341232081,1730706658605,-500.0,0.00036986,2]
[341232082,1730706658614,-552.59,0.00036986,2]
[341232083,1730706658625,-500.0,0.00036986,2]
[341232084,1730706658637,-500.0,0.00036986,2]
[341232085,1730706658646,-500.0,0.00036986,2]
[341232086,1730706658657,-200.0,0.00036986,2]
[341232087,1730706658667,-764.99,0.00036986,2]
[341232088,1730706658677,-680.74,0.00036986,2]
[341232089,1730706658689,-573.11181825,0.00036986,2]
[341232090,1730706658700,-500.0,0.00036986,2]
[341232091,1730706658710,-500.0,0.00036986,2]
[341232092,1730706658719,-412.07764706,0.00036986,2]
[341232093,1730706658730,-500.0,0.00036986,2]
[341232094,1730706658740,-500.0,0.00036986,2]
[341232095,1730706658751,-623.92244925,0.00036986,2]
[341232096,1730706658760,-500.0,0.00036986,2]
[341232097,1730706658770,-500.0,0.00036986,2]
[341232098,1730706658782,-500.0,0.00036986,2]
[341232099,1730706658792,-500.0,0.00036986,2]
[341232100,1730706658802,-500.0,0.00036986,2]
[341232101,1730706658813,-500.0,0.00036986,2]
[341232102,1730706658824,-500.0,0.00036986,2]
[341232103,1730706658834,-500.0,0.00036986,2]
[341232104,1730706658844,-500.0,0.00036986,2]
[341232105,1730706658854,-500.0,0.00036986,2]
[341232106,1730706658864,-500.0,0.00036986,2]
[341232107,1730706658873,-882.73,0.00036986,2]
[341232108,1730706658883,-500.0,0.00036986,2]
[341232109,1730706658892,-500.0,0.00036986,2]
[341232110,1730706658903,-508.1967708,0.00036986,89]
[341232111,1730706658914,-1038.01,0.00036986,2]
[341232112,1730706658925,-2119.8,0.00036986,2]
[341232113,1730706658934,-636.33,0.00036986,2]
[341232114,1730706659016,-276.811437,0.00036986,7]
[341232115,1730706659026,-276.811437,0.00036986,7]
[341232116,1730706659036,-500.0,0.00036986,2]
[341232117,1730706659046,-500.0,0.00036986,2]
[341232118,1730706659056,-500.0,0.00036986,2]
[341232119,1730706659066,-855.96,0.00036986,2]
[341232120,1730706659076,-500.0,0.00036986,2]
[341232121,1730706659086,-1376.22,0.00036986,2]
[341232122,1730706659095,-500.0,0.00036986,2]
[341232123,1730706659105,-1148.2,0.00036986,2]
[341232124,1730706659115,-500.0,0.00036986,2]
[341232125,1730706659125,-586.38,0.00036986,2]
[341232126,1730706659135,-500.0,0.00036986,2]
[341232127,1730706659144,-500.0,0.00036986,2]
[341232128,1730706659154,-500.0,0.00036986,2]
[341232129,1730706659164,-500.0,0.00036986,2]
[341232130,1730706659174,-500.0,0.00036986,2]
[341232131,1730706659184,-500.0,0.00036986,2]
[341232132,1730706659194,-500.0,0.00036986,2]
[341232133,1730706659204,-502.79,0.00036986,2]
[341232134,1730706659214,-500.0,0.00036986,2]
[341232135,1730706659224,-550.01,0.00036986,2]
[341232136,1730706659234,-547.93297017,0.00036986,2]
[341232137,1730706659245,-500.0,0.00036986,2]
[341232138,1730706659257,-500.0,0.00036986,2]
[341232139,1730706659267,-500.0,0.00036986,2]
[341232140,1730706659276,-500.0,0.00036986,2]
[341232141,1730706659286,-500.0,0.00036986,2]
[341232142,1730706659296,-500.0,0.00036986,2]
[341232143,1730706659306,-1083.55,0.00036986,2]
[341232144,1730706659317,-500.0,0.00036986,2]
[341232145,1730706659327,-270.09931161,0.00036986,2]
[341232146,1730706659336,-239.74023066,0.00036986,2]
[341232147,1730706659348,-500.0,0.00036986,2]
[341232148,1730706659357,-500.0,0.00036986,2]
[341232149,1730706659367,-500.0,0.00036986,2]
[341232150,1730706659376,-500.0,0.00036986,2]
[341232151,1730706659386,-500.0,0.00036986,2]
[341232152,1730706659396,-500.0,0.00036986,2]
[341232153,1730706659405,-500.0,0.00036986,2]
[341232154,1730706659416,-620.66,0.00036986,2]
[341232155,1730706659426,-500.0,0.00036986,2]
[341232156,1730706659436,-658.4,0.00036986,2]
[341232157,1730706659446,-500.0,0.00036986,2]
[341232158,1730706659458,-151.0,0.00036986,7]
[341232159,1730706659468,-625.32,0.00036986,2]
[341232160,1730706659477,-500.0,0.00036986,2]
[341232161,1730706659487,-500.0,0.00036986,2]
[341232162,1730706659498,-500.0,0.00036986,2]
[341232163,1730706659507,-557.48,0.00036986,2]
[341232164,1730706659517,-5483.23,0.00036986,2]
[341232165,1730706659529,-500.0,0.00036986,2]
[341232166,1730706659539,-637.29,0.00036986,2]
[341232167,1730706659549,-500.0,0.00036986,2]
[341232168,1730706659559,-650.0,0.00037,2]
[341232169,1730706659569,-2207.81350592,0.00037,14]
[341232170,1730706659579,-150.0,0.00037003,2]
[341232171,1730706659588,-150.0,0.00037057,2]
[341232172,1730706659597,-150.0,0.00037066,2]
[341232173,1730706659607,-150.0,0.00037189,2]
[341232174,1730706659616,-166.78,0.00037196,2]
[341232175,1730706659625,-500.0,0.00037225,2]
[341232176,1730706659634,-150.0,0.00037226,2]
[341232177,1730706659643,-150.0,0.00037235,2]
[341232178,1730706659653,-150.0,0.00037256,2]
[341232179,1730706659662,-245.27,0.0003726,2]
[341232180,1730706659671,-585.26519996,0.0003726,2]
[341232181,1730706659680,-414.33953837,0.0003726,2]
[341232182,1730706659691,-402.10014218,0.0003726,2]
[341232183,1730706659701,-500.0,0.0003726,2]
[341232184,1730706659712,-500.0,0.0003726,2]
[341232185,1730706659723,-500.0,0.0003726,2]
[341232186,1730706659733,-500.0,0.0003726,2]
[341232187,1730706659744,-549.91617339,0.0003726,2]
[341232188,1730706659753,-500.0,0.0003726,2]
[341232189,1730706659763,-500.0,0.0003726,2]
[341232190,1730706659773,-628.86031976,0.0003726,2]
[341232191,1730706659784,-500.0,0.0003726,2]
[341232192,1730706659796,-500.0,0.0003726,2]
[341232193,1730706659806,-500.0,0.0003726,2]
[341232194,1730706659815,-500.0,0.0003726,2]
[341232195,1730706659824,-500.0,0.0003726,2]
[341232196,1730706659833,-500.0,0.0003726,2]
[341232197,1730706659842,-500.0,0.0003726,2]
[341232198,1730706659852,-150.0,0.0003726,2]
[341232199,1730706659861,-500.0,0.0003726,2]
[341232200,1730706659870,-500.0,0.0003726,2]
[341232201,1730706659879,-500.0,0.0003726,2]
[341232202,1730706659889,-500.0,0.0003726,2]
[341232203,1730706659898,-922.57,0.0003726,2]
[341232204,1730706659908,-543.78187595,0.0003726,2]
[341232205,1730706659917,-500.0,0.0003726,2]
[341232206,1730706659926,-500.0,0.0003726,2]
[341232207,1730706659935,-500.0,0.0003726,2]
[341232208,1730706659945,-500.0,0.0003726,2]
[341232209,1730706659955,-567.3,0.0003726,2]
[341232210,1730706659964,-500.0,0.0003726,2]
[341232211,1730706659973,-500.0,0.0003726,2]
[341232212,1730706659983,-500.0,0.0003726,2]
[341232213,1730706659992,-500.0,0.0003726,2]
[341232214,1730706660002,-500.0,0.0003726,2]
[341232215,1730706660012,-300.0,0.0003726,2]
[341232216,1730706660022,-395.79606223,0.0003726,2]
[341232217,1730706660032,-500.0,0.0003726,2]
[341232218,1730706660042,-503.57,0.0003726,2]
[341232219,1730706660052,-500.0,0.0003726,2]
[341232220,1730706660061,-500.0,0.0003726,2]
[341232221,1730706660071,-500.0,0.0003726,2]
[341232222,1730706660081,-500.0,0.0003726,2]
[341232223,1730706660090,-152.50425917,0.0003726,2]
[341232224,1730706660100,-500.0,0.0003726,2]
[341232225,1730706660109,-500.0,0.0003726,2]
[341232226,1730706660118,-500.0,0.0003726,2]
[341232227,1730706660128,-1260.4,0.0003726,2]
[341232228,1730706660138,-250.0,0.0003726,2]
[341232229,1730706660148,-559.10949287,0.0003726,2]
[341232230,1730706660158,-1008.77,0.0003726,2]
[341232231,1730706660168,-500.0,0.0003726,2]
[341232232,1730706660178,-552.59,0.0003726,2]
[341232233,1730706660187,-500.0,0.0003726,2]
[341232234,1730706660197,-500.0,0.0003726,2]
[341232235,1730706660207,-500.0,0.0003726,2]
[341232236,1730706660217,-202.94728854,0.0003726,2]
[341232237,1730706660227,-764.99,0.0003726,2]
[341232238,1730706660237,-680.74,0.0003726,2]
[341232239,1730706660248,-500.0,0.0003726,2]
[341232240,1730706660258,-349.42431625,0.0003726,2]
[341232241,1730706660336,-500.0,0.0003726,2]
[341232242,1730706660348,-500.0,0.0003726,2]
[341232243,1730706660359,-500.0,0.0003726,2]
[341232244,1730706660368,-500.0,0.0003726,2]
[341232245,1730706660382,-500.0,0.0003726,2]
[341232246,1730706660394,-500.0,0.0003726,2]
[341232247,1730706660405,-500.0,0.0003726,2]
[341232248,1730706660418,-500.0,0.0003726,2]
[341232249,1730706660428,-248.13460244,0.0003726,2]
[341232250,1730706660438,-500.0,0.0003726,2]
[341232251,1730706660449,-500.0,0.0003726,2]
[341232252,1730706660459,-500.0,0.0003726,2]
[341232253,1730706660469,-500.0,0.0003726,2]
[341232254,1730706660478,-882.73,0.0003726,2]
[341232255,1730706660488,-500.0,0.0003726,2]
[341232256,1730706660499,-500.0,0.0003726,2]